bitfinex/quotes_ETHUSD_20250520
["timestamp","ask_amount","ask_price","bid_price","bid_amount"]
[1747775505854,4.79916394,2508.3,2507.6,12.959]
[1747775506400,3.98692289,2508.2,2508.1,12.959]
[1747775506606,3.98692289,2508.2,2507.2,0.7677]
[1747775506607,3.98833524,2507.4,2507.2,8.7677]
[1747775506899,3.98833626,2507.4,2507.3,12.962]
[1747775507203,3.98692289,2508.2,2507.4,8.55]
[1747775507417,3.98803589,2507.5,2507.4,8.55]
[1747775507577,3.98803589,2507.5,2507.4,0.55]
[1747775507899,3.98803589,2507.5,2507.3,0.37582735]
[1747775507900,3.98819494,2507.4,2507.3,0.37582735]
[1747775508202,3.98819494,2507.4,2507.3,13.33782735]
[1747775508879,3.98819494,2507.4,2507.3,12.962]
[1747775509592,3.98819494,2507.4,2507.3,13.7297]
[1747775510089,3.98819494,2507.4,2507.3,0.7677]
[1747775510293,3.98819494,2507.4,2507.3,12.964]
[1747775511008,3.98851308,2507.2,2507.1,17.303]
[1747775511209,3.98851308,2507.2,2507.1,0.1]
[1747775511416,17.42913084,2507.2,2507.1,0.1]
[1747775511919,18.20105924,2507.2,2507.1,0.1]
[1747775512066,20.89858444,2507.2,2507.1,0.1]
[1747775512264,20.89858444,2507.2,2506.1,17.31]
[1747775512265,4.80250454,2506.2,2506.1,0.1]
[1747775513309,3.99010454,2506.2,2506.1,0.1]
[1747775513478,3.32343787,2506.2,2506.1,0.1]
[1747775514308,0.8124,2506.9,2506.1,0.1]
[1747775514309,3.98983536,2506.4,2506.2,0.55]
[1747775514605,0.8124,2508.1,2506.6,0.55]
[1747775514906,3.9882759,2507.4,2507.0,0.55]
[1747775515114,3.98662203,2508.4,2507.4,0.55]
[1747775515408,3.98753101,2507.9,2507.7,0.768]
[1747775515653,3.9875313,2507.9,2507.8,13.21]
[1747775515810,3.98739981,2507.9,2507.8,13.21]
[1747775516015,0.1,2508.9,2507.9,8.55]
[1747775516337,3.98720347,2508.1,2507.9,8.55]
[1747775516535,3.98720347,2508.1,2508.0,0.55]
[1747775516734,3.98692289,2508.2,2508.1,0.768]
[1747775518825,3.98653803,2508.5,2508.1,1.318]
[1747775519025,3.98676394,2508.3,2508.1,0.768]
[1747775519226,3.98692289,2508.2,2508.1,0.768]
[1747775519419,3.98692289,2508.2,2508.1,30.941]
[1747775519951,3.98692289,2508.2,2508.1,31.31574325]
[1747775520611,3.98692289,2508.2,2508.1,23.31574325]
[1747775521614,3.98676394,2508.3,2508.2,0.55]
[1747775522153,3.98676394,2508.3,2508.1,1.14274325]
[1747775522154,3.98692289,2508.2,2508.1,1.14274325]
[1747775522315,3.98692289,2508.2,2508.1,14.34974325]
[1747775522918,3.98692289,2508.2,2508.1,13.207]
[1747775523220,3.98739981,2507.9,2507.8,0.8025]
[1747775523422,3.98771782,2507.7,2507.6,0.46843035]
[1747775523629,3.98708185,2508.1,2507.6,13.67543035]
[1747775523835,3.98692289,2508.2,2507.6,13.67543035]
[1747775523836,3.98771782,2507.7,2507.6,13.67543035]
[1747775524530,3.98771782,2507.7,2507.6,13.207]
[1747775524756,3.98787685,2507.6,2507.5,17.214]
[1747775525056,3.98787685,2507.6,2507.5,30.421]
[1747775527333,5.18419472,2507.6,2507.5,30.421]
[1747775528523,5.18419472,2507.6,2507.5,13.207]
[1747775528719,3.98994533,2506.3,2506.2,0.46843035]
[1747775529867,11.98994533,2506.3,2506.2,0.46843035]
[1747775530049,3.99010454,2506.2,2506.1,0.1]
[1747775533370,3.99010454,2506.2,2506.1,13.311]
[1747775534436,4.47424969,2506.2,2506.1,13.311]
[1747775534561,12.47424969,2506.2,2506.1,0.1]
[1747775534759,19.42107606,2506.2,2506.1,0.1]
[1747775534995,20.19797606,2506.2,2506.1,0.1]
[1747775535388,20.19797606,2506.2,2504.8,0.46843035]
[1747775535389,4.76169726,2505.2,2504.8,0.46843035]
[1747775535576,4.76169726,2505.2,2504.2,13.213]
[1747775535577,12.76169726,2505.2,2504.2,13.213]
[1747775536006,14.43702236,2505.2,2504.2,13.213]
[1747775537072,12.76169726,2505.2,2504.7,13.217]
[1747775537314,19.55281401,2505.2,2504.1,0.1]
[1747775537612,20.10281401,2505.2,2504.1,13.317]
[1747775537967,20.80281401,2505.2,2504.1,13.317]
[1747775538221,4.81429127,2504.2,2504.1,0.1]
[1747775538405,12.81298532,2505.1,2504.2,0.7729]
[1747775538607,3.99193854,2505.1,2504.6,0.55]
[1747775538806,3.99193854,2505.1,2504.5,0.7729]
[1747775538807,3.99190478,2505.1,2504.8,0.55]
[1747775539006,0.7631,2506.1,2504.9,0.7827]
[1747775539203,6.71703528,2508.8,2505.2,0.55]
[1747775539204,3.98978614,2506.4,2505.2,0.55]
[1747775539411,3.99116343,2505.6,2505.4,0.7827]
[1747775539611,3.98962696,2506.5,2505.5,9.523]
[1747775539810,4.80718552,2506.9,2505.8,0.7874]
[1747775539811,3.99054973,2506.0,2505.8,0.7874]
[1747775539992,3.99042298,2506.0,2505.9,30.448]
[1747775540326,3.98905616,2506.9,2506.0,0.55]
[1747775540533,3.98914951,2506.8,2506.0,0.55]
[1747775540774,3.99005103,2506.3,2506.0,0.55]
[1747775540974,0.1,2506.9,2506.1,13.296]
[1747775541276,3.98988048,2506.4,2506.2,0.8092]
[1747775541433,4.08905897,2506.9,2506.2,0.8092]
[1747775541635,3.98988631,2506.4,2506.2,0.8092]
[1747775541856,3.98994533,2506.3,2506.2,0.8092]
[1747775542070,3.98994533,2506.3,2506.2,9.7822]
[1747775545956,0.1,2506.9,2506.2,9.7822]
[1747775546287,3.99042298,2506.0,2505.9,17.228]
[1747775548683,3.99090074,2505.7,2505.6,13.294]
[1747775548843,3.99090074,2505.7,2505.1,18.0533]
[1747775548844,3.99169726,2505.2,2505.1,18.0533]
[1747775549051,3.99169726,2505.2,2505.1,31.3473]
[1747775549245,3.99169726,2505.2,2505.1,13.294]
[1747775551773,3.99169726,2505.2,2505.1,14.0884]
[1747775552185,3.99102543,2505.7,2505.1,14.0884]
[1747775552368,3.99169726,2505.2,2505.1,14.0884]
[1747775552573,3.99161292,2505.3,2505.1,14.0384]
[1747775552777,3.99169726,2505.2,2505.1,14.0384]
[1747775554095,3.99058222,2505.9,2505.1,14.0384]
[1747775554749,3.99156177,2505.3,2505.1,14.0384]
[1747775554945,3.99158163,2505.3,2505.1,14.0384]
[1747775555186,3.99163383,2505.3,2505.1,14.0384]
[1747775555488,3.99026375,2506.1,2505.1,14.0384]
[1747775555641,3.99060815,2505.9,2505.1,14.0384]
[1747775555845,3.99145743,2505.4,2505.1,14.0384]
[1747775556041,3.99074147,2505.8,2505.1,14.0384]
[1747775556042,3.99156489,2505.3,2505.1,14.0384]
[1747775556482,3.98962696,2506.5,2505.4,0.78]
[1747775556684,3.98978614,2506.4,2505.5,17.229]
[1747775556864,3.99090074,2505.7,2505.6,13.297]
[1747775557380,3.98978614,2506.4,2505.6,13.297]
[1747775557381,3.99082027,2505.8,2505.6,13.297]
[1747775557591,3.99090074,2505.7,2505.6,13.297]
[1747775560756,3.98992705,2506.4,2505.6,13.297]
[1747775560956,0.7552,2506.6,2505.6,13.297]
[1747775561157,3.99061605,2505.9,2505.6,13.297]
[1747775561676,3.99090074,2505.7,2505.6,13.297]
[1747775561880,3.99090074,2505.7,2505.6,17.401393]
[1747775562259,3.99090074,2505.7,2505.6,13.297]
[1747775563191,3.99090074,2505.7,2505.6,22.27]
[1747775566300,3.99090074,2505.7,2505.6,30.522]
[1747775567299,3.99079494,2505.8,2505.6,30.522]
[1747775567609,0.7552,2506.6,2505.7,8.972]
[1747775567766,3.99065546,2505.9,2505.7,8.972]
[1747775569109,3.99074147,2505.8,2505.7,8.972]
[1747775569309,3.99074147,2505.8,2505.7,9.7624]
[1747775570107,3.99074147,2505.8,2505.7,0.7904]
[1747775570313,3.99074147,2505.8,2505.7,9.7624]
[1747775570491,3.9897047,2506.5,2506.1,0.7654]
[1747775570814,3.98974519,2506.5,2506.2,13.294]
[1747775571170,3.98934947,2506.7,2506.2,13.294]
[1747775571171,3.98952805,2506.6,2506.2,13.67224088]
[1747775571717,3.98957037,2506.6,2506.2,13.67224088]
[1747775572214,3.98994533,2506.3,2506.2,0.37824088]
[1747775572513,3.98986038,2506.4,2506.2,25.50890088]
[1747775572802,3.98986038,2506.4,2506.3,0.37824088]
[1747775573411,3.98986038,2506.4,2506.3,13.36224088]
[1747775574207,3.98986038,2506.4,2506.3,12.984]
[1747775575379,4.78781226,2506.4,2506.3,12.984]
[1747775576940,3.98986038,2506.4,2506.3,12.984]
[1747775577760,0.22293574,2506.6,2506.3,12.984]
[1747775577908,4.88400821,2506.9,2506.3,12.984]
[1747775577909,3.98978614,2506.4,2506.3,12.984]
[1747775578109,0.895,2506.9,2506.3,12.984]
[1747775578110,0.1,2506.9,2506.4,0.8011]
[1747775578411,3.98970804,2506.5,2506.4,0.8011]
[1747775580203,0.1,2506.9,2506.4,0.8011]
[1747775580400,3.98954226,2506.6,2506.4,0.8011]
[1747775580605,0.1,2506.9,2506.5,12.983]
[1747775580839,3.98930865,2506.7,2506.6,17.223]
[1747775581405,4.0890801,2506.9,2506.6,18.0293]
[1747775581736,3.98930865,2506.7,2506.6,18.0293]
[1747775581936,3.98930865,2506.7,2506.6,39.175]
[1747775582136,3.98930865,2506.7,2506.6,17.223]
[1747775582431,3.98930865,2506.7,2506.6,30.205]
[1747775583705,3.98930865,2506.7,2506.6,39.175]
[1747775584955,4.08912494,2506.9,2506.6,43.054823]
[1747775585241,3.98930865,2506.7,2506.6,17.223]
[1747775585418,3.98930865,2506.7,2506.6,39.174]
[1747775586206,3.98930865,2506.7,2506.6,17.223]
[1747775586407,3.98930865,2506.7,2506.6,39.174]
[1747775587131,4.76840865,2506.7,2506.6,17.223]
[1747775587307,5.65416447,2506.7,2506.6,30.205]
[1747775588640,3.98930865,2506.7,2506.6,30.205]
[1747775589143,4.76840865,2506.7,2506.6,17.223]
[1747775589842,4.99170148,2506.7,2506.6,17.223]
[1747775590959,3.99106002,2505.6,2505.5,1.24813035]
[1747775591159,3.99106002,2505.6,2505.5,40.42213035]
[1747775591373,3.99106002,2505.6,2505.5,30.67243035]
[1747775592069,3.99106002,2505.6,2505.5,30.204]
[1747775592271,4.98175285,2505.6,2505.5,30.204]
[1747775592426,5.87902144,2505.6,2505.5,30.204]
[1747775592627,5.87902144,2505.6,2505.5,12.982]
[1747775593783,4.21435285,2505.6,2505.5,21.952]
[1747775593942,0.22329283,2505.6,2505.5,21.952]
[1747775594133,3.99033686,2506.1,2505.5,22.7184]
[1747775594464,0.7674,2506.6,2505.6,0.55]
[1747775594636,0.8674,2506.9,2505.8,0.55]
[1747775594837,0.8674,2506.9,2505.8,8.55]
[1747775595262,3.99012375,2506.2,2505.9,1.20717969]
[1747775595468,0.1,2506.9,2506.1,8.0]
[1747775595649,0.1,2506.9,2506.3,8.0]
[1747775595846,3.98955477,2506.6,2506.3,8.0]
[1747775596048,3.98915117,2506.8,2506.4,0.8287]
[1747775596283,3.9892239,2506.8,2506.5,18.374653]
[1747775596483,4.08908607,2506.9,2506.6,4.839653]
[1747775596787,4.08907414,2506.9,2506.7,17.224]
[1747775597088,3.98914951,2506.8,2506.7,17.224]
[1747775597280,3.98914951,2506.8,2506.7,21.467506]
[1747775597444,3.98914951,2506.8,2506.7,39.177]
[1747775597776,4.088991,2506.9,2506.7,43.28025]
[1747775597934,0.1,2506.9,2506.7,39.177]
[1747775598138,0.1,2506.9,2506.8,0.8194]
[1747775599573,0.1,2506.9,2506.8,16.6025427]
[1747775599779,0.1,2506.9,2506.8,16.16116321]
[1747775599978,0.1,2506.9,2506.8,16.94556321]
[1747775600192,3.98783383,2507.7,2507.3,0.7844]
[1747775600388,3.98783383,2507.7,2507.4,21.951]
[1747775600591,3.98755881,2507.8,2507.4,21.951]
[1747775600592,3.98763372,2507.8,2507.4,21.951]
[1747775600795,3.9878172,2507.7,2507.4,21.951]
[1747775601158,3.98777395,2507.7,2507.4,21.951]
[1747775601357,3.98757408,2507.8,2507.4,21.951]
[1747775601559,3.98787356,2507.7,2507.4,21.951]
[1747775601772,3.98791347,2507.6,2507.4,21.951]
[1747775601973,3.98787356,2507.7,2507.4,21.951]
[1747775601974,0.1,2507.9,2507.4,21.951]
[1747775602186,3.98789063,2507.6,2507.4,21.951]
[1747775602498,3.98789063,2507.6,2507.5,21.742]
[1747775603594,3.98787685,2507.6,2507.5,21.742]
[1747775603897,3.9876388,2507.8,2507.5,21.742]
[1747775604100,0.1,2507.9,2507.5,21.742]
[1747775604299,3.98773443,2507.7,2507.5,21.742]
[1747775604486,3.98773443,2507.7,2507.6,4.839653]
[1747775604683,4.08741405,2507.9,2507.6,4.839653]
[1747775604883,3.98771782,2507.7,2507.5,21.742]
[1747775605085,3.98771782,2507.7,2507.6,29.99]
[1747775605299,0.1,2507.9,2507.6,37.99]
[1747775605596,0.1,2507.9,2507.8,1.3764]
[1747775605771,0.1,2507.9,2507.8,14.216053]
[1747775607063,4.08739981,2507.9,2507.8,14.216053]
[1747775607505,0.1,2507.9,2507.8,14.216053]
[1747775608191,4.08739981,2507.9,2507.8,13.666053]
[1747775608505,4.08739981,2507.9,2507.8,22.633053]
[1747775609083,4.08739981,2507.9,2507.8,17.7934]
[1747775609271,3.64370847,2507.9,2507.8,22.633053]
[1747775609472,3.64370847,2507.9,2507.8,8.8264]
[1747775609775,3.64370847,2507.9,2507.8,21.734]
[1747775610404,3.64370847,2507.9,2507.8,12.768]
[1747775611078,3.98731218,2508.0,2507.8,17.10497]
[1747775611281,0.8213,2508.4,2507.8,12.768]
[1747775611507,3.98739981,2507.9,2507.8,12.768]
[1747775611676,3.98739981,2507.9,2507.8,15.933581]
[1747775613569,0.8213,2508.4,2507.8,15.933581]
[1747775613570,4.80802136,2508.4,2507.8,15.933581]
[1747775613773,3.9871592,2508.1,2507.8,12.768]
[1747775614017,3.98648483,2508.5,2507.8,12.768]
[1747775614312,3.98732204,2508.0,2507.8,12.768]
[1747775614475,3.98714718,2508.1,2507.8,12.768]
[1747775614677,3.98720791,2508.1,2507.8,12.768]
[1747775615112,0.1,2508.9,2508.0,0.55]
[1747775615611,3.98662918,2508.4,2508.1,8.0]
[1747775616005,3.98662918,2508.4,2508.0,0.55]
[1747775616200,3.98662918,2508.4,2508.1,8.0]
[1747775616408,0.1,2508.9,2508.1,8.0]
[1747775616409,3.98653414,2508.5,2508.1,8.0]
[1747775616721,4.08586364,2508.9,2508.0,2.94232366]
[1747775616722,3.98667104,2508.4,2508.0,8.55]
[1747775616906,3.98667104,2508.4,2508.0,0.55]
[1747775617244,3.98667104,2508.4,2508.0,2.94234151]
[1747775617443,3.98667104,2508.4,2508.0,2.94234332]
[1747775617604,0.1,2508.9,2508.0,0.55]
[1747775617805,3.98641505,2508.6,2508.0,0.55]
[1747775618039,3.98641505,2508.6,2508.1,2.39219074]
[1747775618204,3.98641505,2508.6,2508.0,3.34774618]
[1747775618406,0.1,2508.9,2508.0,3.34774618]
[1747775618407,0.1,2508.9,2508.5,0.55]
[1747775618648,0.1,2508.9,2508.3,2.9420136]
[1747775618649,4.08596351,2508.9,2508.6,47.49]
[1747775618819,0.1,2508.9,2508.6,47.49]
[1747775619016,4.08588378,2508.9,2508.6,47.49]
[1747775619215,3.98603345,2508.8,2508.6,47.49]
[1747775619511,3.98605943,2508.8,2508.7,0.55]
[1747775619810,0.1,2508.9,2508.7,0.55]
[1747775620033,3.98596938,2508.8,2508.7,0.55]
[1747775620234,3.98596938,2508.8,2508.7,22.279]
[1747775620744,4.08588869,2508.9,2508.7,30.279]
[1747775621047,0.1,2508.9,2508.8,14.215253]
[1747775621246,4.08581051,2508.9,2508.8,14.215253]
[1747775621452,4.08581051,2508.9,2508.8,11.245242]
[1747775621656,3.98612827,2508.7,2508.6,34.174]
[1747775621838,3.98612827,2508.7,2508.6,46.938]
[1747775622239,3.98600434,2508.8,2508.7,8.0]
[1747775622240,3.98608779,2508.8,2508.7,8.0]
[1747775622544,0.1,2508.9,2508.7,8.0]
[1747775622751,4.08588732,2508.9,2508.7,8.0]
[1747775623118,0.1,2508.9,2508.7,8.0]
[1747775623843,0.1,2508.9,2508.8,0.55]
[1747775624474,0.1,2508.9,2508.8,6.183453]
[1747775624648,0.1,2508.9,2508.8,4.449146]
[1747775624946,3.98596938,2508.8,2508.7,8.0]
[1747775625154,3.98596938,2508.8,2508.7,20.763]
[1747775625465,3.98612827,2508.7,2508.6,17.211]
[1747775625630,3.98612827,2508.7,2508.6,29.974]
[1747775625946,3.98655508,2508.5,2508.2,0.87017464]
[1747775626113,3.98655508,2508.5,2508.4,8.0]
[1747775626309,3.98655508,2508.5,2508.4,20.763]
[1747775626527,3.98655508,2508.5,2508.4,29.725]
[1747775626952,3.98655508,2508.5,2508.4,12.763]
[1747775627124,3.98655508,2508.5,2508.4,21.725]
[1747775628460,4.79015508,2508.5,2508.4,21.725]
[1747775628648,3.986605,2508.4,2508.3,17.208]
[1747775628826,3.986605,2508.4,2508.3,38.933]
[1747775629423,3.986605,2508.4,2508.3,29.971]
[1747775630422,4.772005,2508.4,2508.3,29.971]
[1747775630671,6.13425728,2508.4,2508.3,29.971]
[1747775631840,4.772005,2508.4,2508.3,29.971]
[1747775632448,3.986605,2508.4,2508.3,29.971]
[1747775632647,3.98649988,2508.5,2508.3,29.971]
[1747775632852,3.98649988,2508.5,2508.3,30.59403419]
[1747775633066,3.986605,2508.4,2508.3,30.59403419]
[1747775633578,3.986605,2508.4,2508.3,30.97305014]
[1747775634436,3.986605,2508.4,2508.3,39.77905014]
[1747775635356,0.8308,2508.8,2508.3,47.77905014]
[1747775635668,3.98644608,2508.5,2508.4,29.568]
[1747775636055,3.98644608,2508.5,2508.4,21.568]
[1747775636260,3.98644608,2508.5,2508.3,18.21005014]
[1747775636261,3.986605,2508.4,2508.3,18.21005014]
[1747775636456,4.78388153,2508.4,2508.3,39.77805014]
[1747775636660,4.78388153,2508.4,2508.3,39.15501595]
[1747775637694,3.986605,2508.4,2508.3,39.15501595]
[1747775638190,3.986605,2508.4,2508.3,38.776]
[1747775639455,3.986605,2508.4,2508.3,29.813]
[1747775639656,3.97741299,2508.4,2508.3,38.776]
[1747775640385,12.76931299,2508.4,2508.3,29.814]
[1747775640586,15.28942964,2508.4,2508.3,29.814]
[1747775641657,0.7919,2507.6,2507.3,1.87713035]
[1747775641862,3.98819494,2507.4,2507.3,1.87713035]
[1747775642053,3.98807228,2507.5,2507.3,14.48413035]
[1747775642270,3.98819494,2507.4,2507.3,14.48413035]
[1747775642474,4.76699494,2507.4,2507.3,1.87713035]
[1747775642671,4.76699494,2507.4,2507.3,14.48413035]
[1747775643194,3.98819494,2507.4,2507.3,14.0157]
[1747775643761,3.98819494,2507.4,2507.3,23.31164085]
[1747775644996,3.98819494,2507.4,2507.3,14.34964085]
[1747775645161,3.98819494,2507.4,2507.3,14.0167]
[1747775648357,4.76759494,2507.4,2507.3,14.0167]
[1747775649064,4.76759494,2507.4,2507.3,1.4087]
[1747775649262,6.08907048,2507.4,2507.3,1.4087]
[1747775649791,6.08907048,2507.4,2506.1,0.1]
[1747775649792,0.1,2507.1,2506.1,0.1]
[1747775650103,4.76950454,2506.2,2506.1,0.1]
[1747775650262,12.76950454,2506.2,2506.1,0.1]
[1747775651009,13.16203333,2506.2,2506.1,0.1]
[1747775651296,13.31902298,2506.0,2505.9,0.46843035]
[1747775651454,17.77811115,2506.0,2505.9,0.80155721]
[1747775651657,12.54042298,2506.0,2505.0,1.23040369]
[1747775651860,3.99249411,2504.7,2504.6,3.76567689]
[1747775652060,5.15454352,2504.7,2504.6,3.76567689]
[1747775652272,4.75529411,2504.7,2504.6,3.76567689]
[1747775652482,3.99249411,2504.7,2504.6,3.76567689]
[1747775652683,3.99249411,2504.7,2504.6,12.61]
[1747775653202,3.99234922,2504.8,2504.5,8.966]
[1747775653509,3.99249411,2504.7,2504.6,12.615]
[1747775654369,4.32398527,2504.7,2504.6,12.615]
[1747775654773,3.99329127,2504.2,2504.1,29.93]
[1747775655016,4.32478243,2504.2,2504.1,29.93]
[1747775655318,5.12568243,2504.2,2504.1,0.1]
[1747775655486,6.50188311,2504.2,2504.1,0.1]
[1747775656120,7.20188311,2504.2,2504.1,0.1]
[1747775656428,15.75188311,2504.2,2504.1,0.1]
[1747775656725,4.79484828,2503.6,2503.5,12.615]
[1747775656921,5.12633944,2503.6,2503.5,12.615]
[1747775657736,3.99368971,2504.0,2503.6,8.0]
[1747775657887,3.99378911,2503.9,2503.6,8.0]
[1747775658089,4.77447437,2504.6,2503.6,8.0]
[1747775658425,0.7818,2503.5,2503.1,0.1]
[1747775658582,3.99648309,2502.2,2501.4,0.8172]
[1747775658788,3.99648309,2502.2,2502.1,13.195]
[1747775659010,3.99639403,2502.3,2502.1,13.195]
[1747775659210,3.99648309,2502.2,2502.1,0.1]
[1747775659489,3.99648309,2502.2,2502.1,13.195]
[1747775659829,3.99648309,2502.2,2502.1,13.2]
[1747775660395,3.99648309,2502.2,2502.1,0.1]
[1747775660889,3.99648309,2502.2,2502.1,0.05]
[1747775661388,4.80868309,2502.2,2502.1,0.05]
[1747775661787,3.99664282,2502.1,2502.0,13.1]
[1747775662244,3.99664282,2502.1,2501.1,17.334]
[1747775662245,1.28016671,2502.1,2501.1,17.334]
[1747775662458,0.8122,2502.6,2501.3,0.7634]
[1747775662603,3.99656367,2502.2,2501.4,10.39865675]
[1747775662802,1.95793055,2505.5,2501.5,0.7634]
[1747775663001,0.8122,2503.6,2502.0,2.34806515]
[1747775663242,3.99644413,2502.3,2502.1,30.344]
[1747775663441,3.99648309,2502.2,2502.1,30.344]
[1747775663762,3.99648309,2502.2,2500.8,13.104]
[1747775663763,3.99808092,2501.2,2500.8,13.104]
[1747775664056,0.03997389,2501.6,2501.1,0.03997385]
[1747775664204,0.8122,2502.0,2501.1,0.03997385]
[1747775664205,0.8122,2502.0,2501.2,17.24]
[1747775664409,3.99620913,2502.4,2501.4,2.39865675]
[1747775664646,3.99620913,2502.4,2501.3,13.90737676]
[1747775664647,3.99662163,2502.2,2501.3,0.7134]
[1747775664832,4.80775413,2502.8,2501.5,13.14397471]
[1747775665006,0.8122,2502.8,2501.5,13.104]
[1747775665210,0.8122,2502.8,2501.6,0.55]
[1747775665439,3.99627158,2502.4,2501.6,15.50242908]
[1747775665610,0.8122,2502.8,2501.6,13.104]
[1747775665815,3.99609587,2502.5,2501.7,2.39831325]
[1747775666011,3.99591955,2502.6,2501.8,13.107]
[1747775666347,3.99574994,2502.7,2501.9,15.50513481]
[1747775666546,3.99600593,2502.5,2501.9,13.107]
[1747775666748,0.8122,2502.8,2502.1,2.39798396]
[1747775666917,3.99591399,2502.6,2501.9,15.50516876]
[1747775667118,3.99576264,2502.7,2502.0,2.39807786]
[1747775667418,0.03997389,2502.6,2501.9,2.39817188]
[1747775667615,3.99664387,2502.1,2501.7,0.03996604]
[1747775667836,3.99584432,2502.6,2501.8,0.8064]
[1747775667837,3.99651926,2502.2,2501.8,0.8064]
[1747775668008,4.82274225,2502.7,2501.8,1.64520961]
[1747775668347,4.82274225,2502.7,2501.8,0.8064]
[1747775668348,3.99600399,2502.5,2501.8,0.8064]
[1747775668564,3.99700644,2501.9,2501.6,13.107]
[1747775668846,3.99687695,2502.0,2501.6,13.107]
[1747775669006,4.82281398,2502.7,2501.7,17.247]
[1747775669206,3.99603256,2502.5,2501.7,17.247]
[1747775669414,3.99706382,2501.9,2501.8,13.109]
[1747775669950,3.99674641,2502.1,2501.8,13.109]
[1747775670152,3.99598067,2502.6,2501.9,3.20453263]
[1747775670356,3.99599391,2502.6,2501.9,3.20450551]
[1747775670522,3.9955764,2502.8,2502.1,2.39790816]
[1747775670708,0.827,2503.1,2502.3,0.8064]
[1747775670908,3.99552501,2502.8,2502.4,13.109]
[1747775671143,3.99538264,2502.9,2502.4,13.109]
[1747775671144,3.99572195,2502.7,2502.4,13.109]
[1747775671827,3.99563205,2502.8,2502.4,22.092]
[1747775672029,0.827,2503.1,2502.4,22.092]
[1747775672230,3.99561933,2502.8,2502.4,22.092]
[1747775672443,0.827,2503.1,2502.4,22.092]
[1747775672859,0.827,2503.4,2502.4,24.48963207]
[1747775673074,3.99532345,2503.0,2502.4,24.48963207]
[1747775673266,3.9950429,2503.2,2502.5,0.8064]
[1747775673267,3.99496831,2503.2,2502.5,0.8064]
[1747775673465,3.99456738,2503.4,2502.5,0.8064]
[1747775673671,3.99440782,2503.5,2502.5,3.20398771]
[1747775673962,3.99449346,2503.5,2502.5,0.8064]
[1747775674171,0.1,2503.9,2502.4,13.109]
[1747775674172,3.99584432,2502.6,2502.4,13.109]
[1747775674342,4.82300399,2502.5,2502.4,13.109]
[1747775674536,3.99712207,2501.8,2501.7,18.0534]
[1747775674866,3.99712207,2501.8,2501.7,31.1624]
[1747775675169,3.99703112,2501.9,2501.7,31.1624]
[1747775675332,3.99712207,2501.8,2501.7,31.1624]
[1747775675534,3.99712207,2501.8,2501.7,17.247]
[1747775675738,3.99712207,2501.8,2501.7,30.356]
[1747775676125,3.99792108,2501.3,2501.2,13.109]
[1747775676845,4.82508092,2501.2,2501.1,0.03997385]
[1747775677820,3.99808092,2501.2,2501.1,0.03997385]
[1747775678026,4.82508092,2501.2,2501.1,0.03997385]
[1747775680333,3.99808092,2501.2,2501.1,0.03997385]
[1747775685350,4.75988092,2501.2,2501.1,0.03997385]
[1747775685550,4.79985481,2501.2,2501.1,0.03997385]
[1747775685756,4.75988092,2501.2,2501.1,0.03997385]
[1747775686558,3.99808092,2501.2,2501.1,0.03997385]
[1747775686786,4.82538092,2501.2,2501.1,0.03997385]
[1747775687076,7.48363113,2501.2,2501.1,0.03997385]
[1747775687652,3.99808092,2501.2,2501.1,0.03997385]
[1747775688752,3.99808092,2501.2,2501.1,0.84037385]
[1747775688956,0.8273,2502.3,2501.1,18.09837385]
[1747775689161,3.99768384,2501.5,2501.2,13.398]
[1747775689457,0.8273,2502.3,2501.4,0.8004]
[1747775689668,3.99610813,2502.5,2501.4,0.8004]
[1747775689874,3.9972668,2501.8,2501.4,0.8004]
[1747775690070,3.99701874,2501.9,2501.4,0.8004]
[1747775690242,3.99701874,2501.9,2501.4,1.3044]
[1747775690447,3.99701999,2501.9,2501.6,0.7544]
[1747775690648,3.99701999,2501.9,2501.7,13.399]
[1747775691179,3.99712207,2501.8,2501.7,13.399]
[1747775692082,3.99712207,2501.8,2501.7,13.77881762]
[1747775696118,3.99712207,2501.8,2501.7,13.399]
[1747775698213,3.99712207,2501.8,2501.7,13.77894041]
[1747775700385,3.99673945,2502.1,2501.7,19.44199341]
[1747775700708,3.99712207,2501.8,2501.7,1.20334041]
[1747775700865,3.99563096,2502.8,2501.9,0.8234]
[1747775701069,3.99642155,2502.3,2502.1,0.8234]
[1747775701293,3.99624504,2502.4,2502.2,17.256]
[1747775701606,3.99488884,2503.2,2502.3,13.397]
[1747775701809,4.77318046,2503.4,2502.3,13.397]
[1747775701810,0.7786,2503.4,2502.4,8.8299]
[1747775701969,0.1,2503.9,2502.4,8.8299]
[1747775701970,3.99424828,2503.6,2502.6,1.3799]
[1747775702171,3.99561069,2502.8,2502.7,8.987]
[1747775702406,3.99526627,2503.0,2502.7,8.987]
[1747775702407,3.99545186,2502.9,2502.7,22.383]
[1747775702607,3.99508162,2503.1,2502.8,0.8299]
[1747775703209,3.99520575,2503.0,2502.9,0.37994041]
[1747775703511,3.99511901,2503.1,2502.9,3.60294041]
[1747775703675,3.99520575,2503.0,2502.9,0.37994041]
[1747775703875,3.99520575,2503.0,2502.9,4.00219041]
[1747775704204,0.1,2503.9,2503.0,0.8299]
[1747775704205,3.99480819,2503.3,2503.0,0.8299]
[1747775704411,3.99465333,2503.4,2503.0,0.8299]
[1747775704911,3.99504614,2503.1,2503.0,0.8299]
[1747775705087,3.99504614,2503.1,2503.0,23.2089]
[1747775705491,3.99353593,2504.1,2503.0,24.04770961]
[1747775705679,3.99488661,2503.2,2503.0,23.2089]
[1747775705879,3.99504614,2503.1,2503.0,23.2089]
[1747775706511,3.99504614,2503.1,2503.0,13.394]
[1747775707288,3.99520575,2503.0,2502.9,13.394]
[1747775710995,3.99520575,2503.0,2502.9,14.225]